bitfinex-derivatives/quotes_BNBF0:USTF0_20250302
["timestamp","ask_amount","ask_price","bid_price","bid_amount"]
[1740912592368,1.43012477,609.07,608.52,2.61066627]
[1740912592572,2.56165459,609.06,608.52,2.61066627]
[1740912592766,3.03185382,609.05,608.52,2.61066627]
[1740912592967,2.56165459,609.04,608.52,2.61066627]
[1740912593167,3.03185382,609.03,608.52,2.61066627]
[1740912593369,1.43012477,609.02,608.52,2.61066627]
[1740912593770,1.13152982,609.01,608.52,2.61066627]
[1740912594163,1.13152982,609.0,608.52,2.61066627]
[1740912594368,4.16360791,609.0,608.52,2.61066627]
[1740912594569,3.03207809,608.99,608.52,2.61066627]
[1740912594765,1.13152982,609.0,608.52,2.61066627]
[1740912594965,1.13152982,608.98,608.52,2.61066627]
[1740912595566,1.13152982,608.97,608.52,2.61066627]
[1740912595767,1.13152982,608.97,608.52,3.79766627]
[1740912596670,1.13152982,608.96,608.52,3.79766627]
[1740912597573,1.13152982,608.95,608.52,3.79766627]
[1740912597873,1.13152982,608.94,608.52,3.79766627]
[1740912598573,1.13152982,608.93,608.52,3.79766627]
[1740912598971,1.13152982,608.92,608.52,3.79766627]
[1740912599773,1.13152982,608.91,608.52,3.79766627]
[1740912600271,1.71506721,609.05,608.52,3.79766627]
[1740912600272,1.13152982,608.9,608.52,3.79766627]
[1740912600671,1.13152982,608.89,608.52,3.79766627]
[1740912601573,1.13152982,608.88,608.52,3.79766627]
[1740912602170,1.13152982,608.87,608.52,3.79766627]
[1740912602676,1.13152982,608.86,608.52,3.79766627]
[1740912603076,1.13152982,608.86,608.52,3.21966627]
[1740912603274,1.13152982,608.85,608.52,3.21966627]
[1740912603875,1.13152982,608.84,608.52,3.21966627]
[1740912604079,1.13152982,608.83,608.52,3.21966627]
[1740912604975,1.13152982,608.82,608.52,3.21966627]
[1740912605672,1.13152982,608.81,608.52,3.21966627]
[1740912606178,1.13152982,608.8,608.52,3.21966627]
[1740912606778,1.13152982,608.79,608.52,3.21966627]
[1740912606980,1.13152982,608.79,608.52,1.51566627]
[1740912607880,1.13152982,608.78,608.52,0.32866627]
[1740912608475,1.13152982,608.77,608.46,0.578]
[1740912609273,1.13152982,608.76,608.46,0.578]
[1740912609877,1.13152982,608.75,608.46,0.578]
[1740912610781,1.13152982,608.74,608.46,0.578]
[1740912611181,1.13152982,608.73,608.46,0.578]
[1740912611883,1.13152982,608.72,608.46,0.578]
[1740912612775,1.13152982,608.71,608.46,0.578]
[1740912612982,2.84728759,608.71,608.46,0.578]
[1740912613380,1.13152982,608.7,608.46,0.578]
[1740912613978,1.13152982,608.69,608.46,0.578]
[1740912614984,1.13152982,608.68,608.46,0.578]
[1740912615685,1.13152982,608.67,608.46,0.578]
[1740912615880,2.84740039,608.67,608.46,0.578]
[1740912616078,1.13152982,608.66,608.46,0.578]
[1740912616886,1.13152982,608.65,608.46,0.578]
[1740912617481,1.13152982,608.64,608.46,0.578]
[1740912618282,1.13152982,608.63,608.46,0.578]
[1740912618686,1.13152982,608.62,608.46,0.578]
[1740912619483,1.13152982,608.61,608.46,0.578]
[1740912619886,1.13152982,608.6,608.46,0.578]
[1740912620588,1.13152982,608.59,608.46,0.578]
[1740912621191,1.13152982,608.58,608.46,0.578]
[1740912621788,1.13152982,608.57,608.46,0.578]
[1740912622390,1.13152982,608.56,608.46,0.578]
[1740912623193,1.13152982,608.55,608.46,0.578]
[1740912623694,1.13152982,608.54,608.46,0.578]
[1740912624498,1.13152982,608.64,608.46,0.578]
[1740912625201,1.13152982,608.63,608.43,1.628]
[1740912625899,1.13152982,608.62,608.43,1.628]
[1740912626600,1.13152982,608.61,608.43,1.628]
[1740912627193,1.13152982,608.6,608.43,1.628]
[1740912627699,1.13152982,608.59,608.43,1.628]
[1740912628301,1.71594813,608.68,608.43,1.628]
[1740912629003,1.13152982,608.67,608.43,1.628]
[1740912629503,1.13152982,608.66,608.43,1.628]
[1740912629897,1.13152982,608.65,608.43,1.628]
[1740912630498,1.13152982,608.73,608.43,1.628]
[1740912630902,1.13152982,608.72,608.43,1.628]
[1740912631504,1.13152982,608.71,608.43,1.628]
[1740912631903,2.72959059,608.85,608.43,1.628]
[1740912632104,1.59806077,608.84,608.43,1.628]
[1740912632407,1.13152982,608.85,608.43,1.628]
[1740912632802,1.13152982,608.84,608.43,1.628]
[1740912633709,1.13152982,608.83,608.43,1.628]
[1740912634109,1.13152982,608.82,608.43,1.628]
[1740912634707,1.13152982,608.97,608.43,1.628]
[1740912635102,1.42814598,608.96,608.43,1.628]
[1740912635304,2.5596758,608.96,608.43,1.628]
[1740912635507,1.59901795,608.95,608.43,1.628]
[1740912635709,4.15869375,608.95,608.43,1.628]
[1740912635903,3.02716393,608.94,608.43,1.628]
[1740912636108,4.15851302,608.94,608.43,1.628]
[1740912636308,3.0269832,608.93,608.43,1.628]
[1740912636809,1.13152982,608.92,608.43,1.628]
[1740912637009,1.13152982,608.91,608.43,1.628]
[1740912637208,2.73054777,608.91,608.43,1.628]
[1740912637409,2.55949507,608.91,608.43,1.628]
[1740912637606,1.13152982,608.9,608.43,1.628]
[1740912638314,1.13152982,608.89,608.43,3.458]
[1740912638707,1.13152982,608.88,608.43,3.458]
[1740912639307,1.13152982,608.87,608.43,3.458]
[1740912639506,1.13152982,608.86,608.43,3.458]
[1740912640107,1.13152982,608.85,608.43,3.458]
[1740912640808,1.13152982,608.84,608.43,3.458]
[1740912641208,1.13152982,608.83,608.43,3.458]
[1740912641913,1.13152982,608.82,608.43,3.458]
[1740912642314,1.13152982,608.82,608.43,5.04]
[1740912642514,1.13152982,608.81,608.43,5.04]
[1740912642916,1.13152982,608.8,608.43,5.04]
[1740912643110,2.84716071,608.8,608.43,5.04]
[1740912643312,1.13152982,608.79,608.43,5.04]
[1740912644209,1.13152982,608.78,608.43,5.04]
[1740912644910,1.13152982,608.77,608.43,5.04]
[1740912645314,1.13152982,608.77,608.43,3.412]
[1740912645811,1.13152982,608.76,608.43,3.412]
[1740912646411,1.13152982,608.75,608.43,3.412]
[1740912647111,1.13152982,608.74,608.43,3.412]
[1740912647516,1.7155886,608.89,608.43,3.412]
[1740912648317,1.13086857,608.88,608.43,5.312]
[1740912649213,1.13086857,608.87,608.43,5.312]
[1740912649818,1.13086857,608.86,608.43,5.312]
[1740912650318,1.13086857,608.85,608.43,5.312]
[1740912650714,1.13086857,608.84,608.43,5.312]
[1740912651420,1.13086857,608.83,608.43,5.312]
[1740912652221,1.13086857,608.82,608.43,5.312]
[1740912652721,1.71537719,608.94,608.43,5.312]
[1740912653514,1.13126776,608.93,608.43,5.89]
[1740912653917,1.13126776,608.92,608.43,5.89]
[1740912654316,1.13126776,608.91,608.43,5.89]
[1740912655522,1.13126776,608.9,608.43,5.89]
[1740912656022,1.13126776,608.89,608.43,5.89]
[1740912656817,1.13126776,608.88,608.43,5.89]
[1740912657419,1.13126776,608.87,608.43,5.89]
[1740912658223,1.13126776,608.87,608.43,6.21871488]
[1740912658422,1.60212584,609.02,608.43,6.21871488]
[1740912658617,3.03284252,609.07,608.43,6.21871488]
[1740912658817,1.13183199,609.01,608.43,6.21871488]
[1740912659420,1.13183199,609.0,608.43,6.21871488]
[1740912660627,1.13183199,608.99,608.43,6.21871488]
[1740912661221,1.13183199,608.98,608.43,6.21871488]
[1740912661723,1.13183199,608.97,608.43,6.21871488]
[1740912663324,1.60204516,609.01,608.43,6.21871488]
[1740912663325,1.13183199,608.96,608.43,6.21871488]
[1740912663931,1.13183199,608.95,608.43,6.21871488]
[1740912664929,1.13183199,608.94,608.43,6.21871488]
[1740912666132,1.13183199,609.09,608.43,6.21871488]
[1740912666727,1.13183199,609.08,608.43,6.21871488]
[1740912667131,1.13183199,609.07,608.43,6.21871488]
[1740912667529,2.73266718,609.07,608.43,6.21871488]
[1740912667729,2.73266718,609.06,608.43,6.21871488]
[1740912668232,1.13183199,609.05,608.43,6.21871488]
[1740912668632,1.13183199,609.04,608.43,6.21871488]
[1740912669133,1.13183199,609.03,608.43,6.21871488]
[1740912669835,1.13183199,609.02,608.43,6.21871488]
[1740912670433,1.13183199,609.01,608.43,6.21871488]
[1740912670832,1.13183199,609.0,608.43,6.21871488]
[1740912671335,1.13183199,608.99,608.43,6.21871488]
[1740912671835,4.16082293,608.99,608.43,6.21871488]
[1740912672031,3.02899094,608.98,608.43,6.21871488]
[1740912672228,1.59989738,608.98,608.43,6.21871488]
[1740912672428,1.13183199,608.98,608.43,6.21871488]
[1740912672827,0.97864346,609.05,608.43,6.21871488]
[1740912672828,2.84717395,608.97,608.43,6.21871488]
[1740912673032,1.59989738,608.96,608.43,6.21871488]
[1740912673229,3.02866542,608.96,608.43,6.21871488]
[1740912673432,1.13183199,608.95,608.43,6.21871488]
[1740912673832,2.73174529,608.95,608.43,6.21871488]
[1740912674133,1.13183199,608.94,608.43,6.21871488]
[1740912674537,1.13183199,608.93,608.43,6.21871488]
[1740912674930,1.13183199,608.92,608.43,6.21871488]
[1740912675837,1.13183199,608.91,608.43,6.21871488]
[1740912676435,1.13183199,608.9,608.43,6.21871488]
[1740912676835,1.13183199,608.89,608.43,6.21871488]
[1740912677834,1.13183199,608.88,608.43,6.21871488]
[1740912678143,1.13183199,608.87,608.43,6.21871488]
[1740912678740,1.13183199,608.86,608.43,6.21871488]
[1740912679139,1.13183199,608.85,608.43,6.21871488]
[1740912679940,1.13183199,608.84,608.43,6.21871488]
[1740912680537,1.13183199,608.83,608.43,6.21871488]
[1740912681144,1.13183199,608.82,608.43,6.21871488]
[1740912682143,1.13183199,608.81,608.43,6.21871488]
[1740912682840,1.6029488,609.0,608.43,6.21871488]
[1740912683043,3.03176206,609.01,608.43,6.21871488]
[1740912683243,2.56130718,609.0,608.43,6.21871488]
[1740912683541,1.6029488,608.99,608.43,6.21871488]
[1740912683743,2.73544272,608.99,608.43,6.21871488]
[1740912683943,1.60319388,608.98,608.43,6.21871488]
[1740912684144,1.13249392,608.99,608.43,6.21871488]
[1740912684438,1.13249392,608.97,608.43,6.21871488]
[1740912684645,1.13249392,608.96,608.43,6.21871488]
[1740912685442,1.13249392,608.95,608.43,6.21871488]
[1740912686345,1.71516583,609.02,608.43,6.21871488]
[1740912686346,1.13249392,608.94,608.43,6.21871488]
[1740912686746,1.13249392,608.93,608.43,6.21871488]
[1740912687144,1.13249392,608.92,608.43,6.21871488]
[1740912687748,1.13249392,608.91,608.43,6.21871488]
[1740912688544,1.13249392,608.9,608.43,6.21871488]
[1740912689143,1.43333378,608.89,608.43,6.21871488]
[1740912689346,2.5658277,608.89,608.43,6.21871488]
[1740912689547,1.13249392,608.89,608.43,6.21871488]
[1740912689949,1.13249392,608.88,608.43,6.21871488]
[1740912690347,1.13249392,608.87,608.43,6.21871488]
[1740912690746,1.13249392,608.86,608.43,6.21871488]
[1740912690947,1.13249392,608.85,608.43,6.21871488]
[1740912691747,1.13249392,608.84,608.43,6.21871488]
[1740912692649,0.74271472,609.7,608.43,6.21871488]
[1740912692650,1.13249392,608.83,608.43,6.21871488]
[1740912692850,1.13249392,608.82,608.43,6.21871488]
[1740912693648,1.13249392,608.81,608.43,6.21871488]
[1740912694354,3.03985756,609.11,608.44,0.32870948]
[1740912694554,3.03948388,609.1,608.44,0.32870948]
[1740912694754,3.03948388,609.09,608.44,0.32870948]
[1740912694955,3.03948388,609.08,608.44,0.32870948]
[1740912695156,1.43333378,609.07,608.44,0.32870948]
[1740912695356,1.43333378,609.06,608.44,0.32870948]
[1740912695556,1.43333378,609.05,608.44,0.32870948]
[1740912695857,1.43333378,609.04,608.44,0.32870948]
[1740912696055,1.1345269,609.05,608.44,0.32870948]
[1740912696356,1.1345269,609.03,608.44,0.32870948]
[1740912697853,1.1345269,609.03,608.45,5.199]
[1740912698051,1.1345269,609.02,608.46,0.32869868]
[1740912698958,1.1345269,609.01,608.46,0.32869868]
[1740912699258,1.1345269,609.0,608.46,0.32869868]
[1740912699957,1.1345269,608.99,608.46,0.32869868]
[1740912700759,1.1345269,608.98,608.46,0.32869868]
[1740912701059,1.1345269,608.97,608.46,0.32869868]
[1740912701557,1.1345269,608.96,608.46,0.32869868]
[1740912701956,1.1345269,608.95,608.46,0.32869868]
[1740912702357,1.43303815,609.1,608.46,0.32869868]
[1740912702660,1.43303815,609.09,608.46,0.32869868]
[1740912702859,3.0378343,609.19,608.46,0.32869868]
[1740912703053,1.71491931,609.12,608.46,0.32869868]
[1740912703253,1.1335943,609.08,608.46,0.32869868]
[1740912703859,4.1714286,609.08,608.46,0.32869868]
[1740912704061,2.56663245,609.07,608.46,0.32869868]
[1740912704253,1.1335943,609.07,608.46,0.32869868]
[1740912704653,1.1335943,609.06,608.46,0.32869868]
[1740912705360,1.1335943,609.05,608.46,0.32869868]
[1740912705956,1.1335943,609.04,608.46,0.32869868]
[1740912706966,1.1335943,609.03,608.46,0.32869868]
[1740912707555,1.1335943,609.02,608.46,0.32869868]
[1740912708369,1.1335943,609.01,608.46,0.32869868]
[1740912709170,1.71489818,609.25,608.46,0.32869868]
[1740912709372,1.43332652,609.24,608.46,0.32869868]
[1740912709569,1.43332652,609.23,608.46,0.32869868]
[1740912709765,1.43332652,609.22,608.46,0.32869868]
[1740912709967,1.43332652,609.21,608.46,0.32869868]
[1740912710167,2.56642769,609.2,608.46,0.32869868]
[1740912710370,1.60439849,609.19,608.46,0.32869868]
[1740912710571,4.17082618,609.2,608.46,0.32869868]
[1740912710771,3.03772501,609.19,608.46,0.32869868]
[1740912711165,1.13310117,609.18,608.46,0.32869868]
[1740912711366,2.56642769,609.18,608.46,0.32869868]
[1740912711565,1.13310117,609.18,608.46,0.32869868]
[1740912711770,1.13310117,609.17,608.46,0.32869868]
[1740912712671,1.71477847,609.18,608.46,0.32869868]
[1740912712672,1.13310117,609.16,608.46,0.32869868]
[1740912713066,1.13310117,609.15,608.46,0.32869868]
[1740912713571,1.13310117,609.14,608.46,0.32869868]
[1740912714172,1.13310117,609.13,608.46,0.32869868]
[1740912715171,1.13310117,609.12,608.46,0.32869868]
[1740912715467,1.71472918,609.3,608.46,0.32869868]
[1740912715468,1.13310117,609.11,608.46,0.32869868]
[1740912716173,1.60294664,609.28,608.46,0.32869868]
[1740912716374,3.03426636,609.29,608.46,0.32869868]
[1740912716966,1.13201513,609.28,608.46,0.32869868]
[1740912717169,2.73496177,609.28,608.46,0.32869868]
[1740912717574,1.13201513,609.27,608.46,0.32869868]
[1740912717973,4.16628149,609.27,608.46,0.32869868]
[1740912718176,2.56333485,609.26,608.46,0.32869868]
[1740912718374,1.13201513,609.26,608.46,0.32869868]
[1740912718776,1.13201513,609.25,608.46,0.32869868]
[1740912719374,1.13201513,609.24,608.46,0.32869868]
[1740912719780,1.13201513,609.23,608.46,0.32869868]
[1740912720374,1.13201513,609.22,608.46,0.32869868]
[1740912721176,1.13201513,609.21,608.47,2.16]
[1740912721378,1.13201513,609.21,608.48,0.32868787]
[1740912721780,1.13201513,609.2,608.48,0.32868787]
[1740912722975,1.71463765,609.3,608.48,0.32868787]
[1740912722976,1.13201513,609.29,608.48,0.32868787]
[1740912723284,1.13201513,609.28,608.48,0.32868787]
[1740912723983,1.13201513,609.27,608.49,1.254]
[1740912724374,1.7144687,609.34,608.49,1.254]
[1740912724375,1.13201513,609.26,608.49,1.254]
[1740912724580,1.13201513,609.26,608.5,0.32867707]
[1740912724980,1.13201513,609.33,608.5,0.32867707]
[1740912725581,1.13201513,609.32,608.5,0.32867707]
[1740912726181,1.13201513,609.31,608.5,0.32867707]
[1740912727179,1.13201513,609.3,608.5,0.32867707]
[1740912727779,1.13201513,609.29,608.5,0.32867707]
[1740912728287,1.13201513,609.28,608.5,0.32867707]
[1740912728787,1.13201513,609.27,608.5,0.32867707]
[1740912729587,1.13201513,609.26,608.5,0.32867707]
[1740912730089,1.13201513,609.25,608.51,1.729]
[1740912730283,1.13201513,609.25,608.52,0.32866627]
[1740912730684,1.13201513,609.24,608.52,0.32866627]
[1740912731088,1.13201513,609.23,608.52,0.32866627]
[1740912731989,1.13201513,609.22,608.52,0.32866627]
[1740912732886,1.13201513,609.21,608.52,0.32866627]
[1740912733490,1.13201513,609.2,608.52,0.32866627]
[1740912734095,1.13201513,609.19,608.52,0.32866627]
[1740912734790,1.13201513,609.18,608.52,0.32866627]
[1740912735193,1.13201513,609.17,608.52,0.32866627]
[1740912735793,1.13201513,609.16,608.52,0.32866627]
[1740912736196,1.13201513,609.15,608.52,0.32866627]
[1740912736492,1.13201513,609.15,608.52,1.85266627]
[1740912736696,1.13201513,609.14,608.52,1.85266627]
[1740912737296,1.13201513,609.13,608.52,1.85266627]
[1740912737898,1.13201513,609.12,608.52,1.85266627]
[1740912738098,1.13201513,609.11,608.52,1.85266627]
[1740912738893,1.13201513,609.1,608.52,1.85266627]
[1740912739397,1.13201513,609.09,608.52,1.85266627]
[1740912739791,1.7148348,609.14,608.52,1.85266627]
[1740912739792,1.13201513,609.08,608.52,1.85266627]
[1740912740391,1.13201513,609.07,608.52,1.85266627]
[1740912740899,1.13201513,609.06,608.52,1.85266627]
[1740912741497,1.13201513,609.05,608.52,1.85266627]
[1740912742297,1.13201513,609.04,608.52,2.43066627]
[1740912742701,1.13201513,609.03,608.52,2.43066627]
[1740912743201,1.13201513,609.02,608.52,2.43066627]
[1740912743699,1.13201513,609.01,608.52,2.43066627]
[1740912744099,1.71487705,609.14,608.52,2.43066627]
[1740912744308,3.03317976,609.2,608.52,2.43066627]
[1740912744502,1.13226389,609.13,608.52,2.43066627]
[1740912745309,1.13226389,609.12,608.52,2.43066627]
[1740912746302,1.13226389,609.11,608.52,2.43066627]
[1740912746708,1.13226389,609.1,608.52,2.43066627]
[1740912747607,1.13226389,609.09,608.52,2.43066627]
[1740912748201,1.13226389,609.08,608.52,2.43066627]
[1740912748802,1.13226389,609.07,608.52,2.43066627]
[1740912749407,1.13226389,609.06,608.52,2.43066627]
[1740912749607,1.13226389,609.05,608.52,2.43066627]
[1740912750607,1.13226389,609.04,608.52,2.43066627]
[1740912751009,1.13226389,609.03,608.52,2.43066627]
[1740912751210,1.13226389,609.03,608.52,4.02066627]
[1740912751707,1.13226389,609.02,608.52,4.02066627]
[1740912752109,1.13226389,609.01,608.52,4.02066627]
[1740912752310,1.13226389,609.01,608.52,5.19066627]
[1740912753107,1.13226389,609.0,608.52,5.19066627]
[1740912753708,1.13226389,608.99,608.52,5.19066627]
[1740912754713,1.13226389,608.98,608.52,5.19066627]
[1740912755509,1.43200439,609.13,608.52,5.19066627]
[1740912755713,1.43200439,609.12,608.52,5.19066627]
[1740912755913,1.43200439,609.11,608.52,5.19066627]
[1740912756115,1.43200439,609.1,608.52,5.19066627]
[1740912756315,1.43200439,609.09,608.52,5.19066627]
[1740912756613,1.43200439,609.08,608.52,5.19066627]
[1740912756810,1.43200439,609.09,608.52,5.19066627]
[1740912757008,1.43200439,609.08,608.52,5.19066627]
[1740912757210,1.13444052,609.07,608.52,5.19066627]
[1740912757610,2.56868016,609.07,608.52,5.19066627]
[1740912757911,1.13444052,609.06,608.52,5.19066627]
[1740912758513,1.13444052,609.05,608.52,5.19066627]
[1740912759413,1.13444052,609.04,608.52,5.19066627]
[1740912760220,1.13444052,609.03,608.52,5.19066627]
[1740912761120,1.13444052,609.02,608.52,5.19066627]
[1740912761521,1.13444052,609.01,608.52,5.19066627]
[1740912762022,1.13444052,609.0,608.52,5.19066627]
[1740912762723,1.71472918,609.31,608.52,5.19066627]
[1740912762916,3.04051846,609.3,608.52,5.19066627]
[1740912763115,3.04051846,609.29,608.52,5.19066627]
[1740912763317,3.04051846,609.28,608.52,5.19066627]
[1740912763522,3.04051846,609.27,608.52,5.19066627]
[1740912763720,1.43423964,609.26,608.52,5.19066627]
[1740912763920,1.43423964,609.25,608.52,5.19066627]
[1740912764122,1.43423964,609.24,608.52,5.19066627]
[1740912764323,1.43429643,609.23,608.52,5.19066627]
[1740912764523,1.43429643,609.22,608.52,5.19066627]
[1740912764723,1.43429643,609.21,608.52,5.19066627]
[1740912764924,1.43429643,609.2,608.52,5.19066627]
[1740912765126,1.43429643,609.19,608.52,5.19066627]
[1740912765325,1.13453732,609.19,608.52,5.19066627]
[1740912765624,1.4343624,609.18,608.52,5.19066627]
[1740912765815,1.13453732,609.18,608.52,5.19066627]
[1740912766424,1.13453732,609.17,608.52,5.19066627]
[1740912766822,1.13453732,609.16,608.52,5.19066627]
[1740912767220,1.13453732,609.15,608.52,5.19066627]
[1740912767819,1.13453732,609.14,608.52,5.19066627]
[1740912768018,1.13453732,609.13,608.52,5.19066627]
[1740912768825,1.13453732,609.12,608.52,5.19066627]
[1740912769426,3.04026409,609.38,608.52,5.19066627]
[1740912769720,0.98217354,609.55,608.52,5.19066627]
[1740912769721,4.17439898,609.37,608.52,5.19066627]
[1740912769926,1.43434921,609.36,608.52,5.19066627]
[1740912770126,1.43434921,609.35,608.52,5.19066627]
[1740912770421,1.13413489,609.35,608.52,5.19066627]
[1740912771420,1.13413489,609.34,608.52,5.19066627]
[1740912771819,1.13413489,609.33,608.52,5.19066627]
[1740912772526,1.13413489,609.32,608.52,5.19066627]
[1740912772922,1.13413489,609.31,608.52,5.19066627]
[1740912773526,1.13413489,609.3,608.52,5.19066627]
[1740912774027,1.13413489,609.29,608.52,5.19066627]
[1740912774422,1.13413489,609.28,608.52,5.19066627]
[1740912775022,1.13413489,609.27,608.52,5.19066627]
[1740912775426,1.13413489,609.26,608.52,5.19066627]
[1740912775823,1.13413489,609.25,608.52,5.19066627]
[1740912776530,1.43434921,609.4,608.52,5.19066627]
[1740912776725,3.03815182,609.43,608.52,5.19066627]
[1740912776930,2.56708156,609.42,608.52,5.19066627]
[1740912777330,1.13273235,609.42,608.52,5.19066627]
[1740912777829,1.13273235,609.41,608.52,5.19066627]
[1740912778230,1.13273235,609.4,608.52,5.19066627]
[1740912778625,1.13273235,609.39,608.52,5.19066627]
[1740912779230,1.13273235,609.38,608.52,5.19066627]
[1740912779835,1.13273235,609.37,608.52,5.19066627]
[1740912780430,1.13273235,609.36,608.52,5.19066627]
[1740912780829,1.13231452,609.35,608.52,5.19066627]
[1740912781432,1.13231452,609.34,608.52,5.19066627]
[1740912781927,1.13231452,609.33,608.52,5.19066627]
[1740912782427,1.13231452,609.32,608.52,5.19066627]
[1740912782932,1.13231452,609.31,608.52,5.19066627]
[1740912783333,1.13231452,609.3,608.52,5.19066627]
[1740912783934,1.13231452,609.29,608.52,5.19066627]
[1740912784732,1.13231452,609.28,608.52,5.19066627]
[1740912785234,1.13231452,609.27,608.52,5.19066627]
[1740912785636,1.13231452,609.26,608.52,5.19066627]
[1740912785938,1.71427868,609.44,608.52,5.19066627]
[1740912786837,1.13168202,609.43,608.52,5.19066627]
[1740912787234,1.13168202,609.42,608.52,5.19066627]
[1740912787737,1.13168202,609.41,608.52,5.19066627]
[1740912788037,1.13168202,609.4,608.52,5.19066627]
[1740912788436,1.13168202,609.39,608.52,5.19066627]
[1740912788937,1.13168202,609.38,608.52,5.19066627]
[1740912789441,1.13168202,609.37,608.52,5.19066627]
[1740912790234,1.13168202,609.36,608.52,5.19066627]
[1740912790834,1.13168202,609.35,608.52,5.19066627]
[1740912791340,1.13168202,609.34,608.52,5.19066627]
[1740912791932,1.7141872,609.52,608.52,5.19066627]
[1740912792740,1.13081598,609.51,608.52,5.19066627]
[1740912793136,1.13081598,609.5,608.52,5.19066627]
[1740912793637,1.13081598,609.49,608.52,5.19066627]
[1740912794642,1.13081598,609.48,608.52,5.19066627]
[1740912795641,1.13081598,609.47,608.52,5.19066627]
[1740912796235,1.13081598,609.46,608.52,5.19066627]
[1740912796639,1.13081598,609.45,608.52,5.19066627]
[1740912797037,1.13081598,609.44,608.52,5.19066627]
[1740912797737,1.13081598,609.43,608.52,5.19066627]
[1740912798340,1.13081598,609.42,608.52,5.19066627]
[1740912798740,1.13081598,609.41,608.52,5.19066627]
[1740912799442,1.7141098,609.5,608.52,5.19066627]
[1740912800045,1.13027669,609.49,608.52,5.19066627]
[1740912800441,1.13027669,609.48,608.52,5.19066627]
[1740912800642,1.13027669,609.47,608.52,5.19066627]
[1740912801240,1.13027669,609.46,608.52,5.19066627]
[1740912801643,1.13027669,609.45,608.52,5.19066627]
[1740912802238,1.13027669,609.44,608.52,5.19066627]
[1740912802439,1.13027669,609.43,608.52,5.19066627]
[1740912803355,1.13027669,609.42,608.52,5.19066627]
[1740912804239,1.13027669,609.41,608.52,5.19066627]
[1740912804640,1.13027669,609.4,608.52,5.19066627]
[1740912805146,1.13027669,609.39,608.52,5.19066627]
[1740912805743,1.71411684,609.5,608.52,5.19066627]
[1740912806242,1.13047838,609.49,608.52,5.19066627]
[1740912806740,1.13047838,609.48,608.52,5.19066627]
[1740912807243,1.13047838,609.47,608.52,5.19066627]
[1740912807846,1.13047838,609.46,608.52,5.19066627]
[1740912808644,1.13047838,609.45,608.52,5.19066627]
[1740912809242,1.13047838,609.44,608.52,5.19066627]
[1740912809649,1.13047838,609.43,608.52,5.19066627]
[1740912810444,1.71399723,609.58,608.52,5.19066627]
[1740912810644,4.00846583,609.8,608.52,5.19066627]
[1740912810845,1.13060324,609.57,608.52,5.19066627]
[1740912811345,1.13060324,609.56,608.52,5.19066627]
[1740912811945,1.13060324,609.55,608.52,5.19066627]
[1740912812144,1.13060324,609.54,608.52,5.19066627]
[1740912812950,1.13060324,609.53,608.52,5.19066627]
[1740912813545,1.13060324,609.52,608.52,5.19066627]
[1740912813945,2.84467083,609.51,608.52,5.19066627]
[1740912814551,4.16152038,609.5,608.52,5.19066627]
[1740912814748,2.73228942,609.49,608.52,5.19066627]
[1740912815450,1.13060324,609.48,608.52,5.19066627]
[1740912816353,2.56102889,609.47,608.52,5.19066627]
[1740912816553,1.6020226,609.46,608.52,5.19066627]
[1740912816850,1.13060324,609.45,608.52,5.19066627]
[1740912817047,1.43042565,609.44,608.52,5.19066627]
[1740912817352,1.43042565,609.43,608.52,5.19066627]
[1740912817552,1.13060324,609.45,608.52,5.19066627]
[1740912818051,1.43129181,609.44,608.52,5.19066627]
[1740912818552,1.60335469,609.44,608.52,5.19066627]
[1740912820153,1.71420831,609.43,608.52,5.19066627]
[1740912820357,3.14667406,609.43,608.52,5.19066627]
[1740912820558,1.13060324,609.42,608.52,5.19066627]
[1740912820856,2.73496106,609.42,608.52,5.19066627]
[1740912821058,4.16742681,609.42,608.52,5.19066627]
[1740912821256,4.16742681,609.41,608.52,5.19066627]
[1740912821460,3.03682357,609.4,608.52,5.19066627]
[1740912821862,1.13060324,609.39,608.52,5.19066627]
[1740912822062,2.56306899,609.39,608.52,5.19066627]
[1740912822258,1.13060324,609.39,608.52,5.19066627]
[1740912822661,1.13060324,609.38,608.52,5.19066627]
[1740912823462,1.13060324,609.37,608.52,5.19066627]
[1740912823865,1.13060324,609.36,608.52,5.19066627]
[1740912824263,1.13060324,609.35,608.52,5.19066627]
[1740912825062,1.13060324,609.34,608.52,5.19066627]
[1740912825368,1.13060324,609.33,608.52,5.19066627]
[1740912825569,1.43246575,609.32,608.52,5.19066627]
[1740912825765,1.13060324,609.33,608.52,5.19066627]
[1740912825766,1.43246575,609.31,608.52,5.19066627]
[1740912825970,1.43246575,609.3,608.52,5.19066627]
[1740912826171,1.43246575,609.29,608.52,5.19066627]
[1740912826470,1.13060324,609.31,608.52,5.19066627]
[1740912826665,1.13060324,609.28,608.52,5.19066627]
[1740912826970,1.13060324,609.27,608.52,5.19066627]
[1740912827671,1.13060324,609.26,608.52,5.19066627]